[Event "31st MPL National U18 Chess-ch 2022"]
[Site "Pollachi"]
[Date "2022.04.18"]
[Round "2.2"]
[White "Srihari L R"]
[Black "Aditya Savalkar"]
[Result "1-0"]
[ECO "D11"]
[WhiteElo "2400"]
[BlackElo "1592"]
[Annotator "TA"]
[PlyCount "95"]
[EventDate "2022.04.18"]
[EventCountry "IND"]
[SourceTitle "playchess.com"]
[Source "ChessBase"]
[SourceQuality "1"]
[TimeControl "5400+30"]

{[%evp 12,95,25,25,36,-12,6,-2,-2,0,3,2,4,8,23,0,7,0,0,0,0,0,49,49,40,44,58,65,153,134,250,256,250,262,270,156,204,197,200,199,268,271,292,276,349,354,372,375,470,494,422,364,465,445,466,452,458,391,492,483,570,540,540,535,526,518,1022,1040,1194,1225,1207,1141,1913,1986,1927,1909,1778,1683,2199,2151,2086,2047,29986,29987,29988,29989]} 1. Nf3 {[%emt 0:00:25]} d5 {[%emt 0:00:05]} 2. c4 {[%emt 0:00:16]} c6 {[%emt 0:01:07]} 3. d4 {[%emt 0:02:47]} Nf6 {[%emt 0:00:28]} 4. Qc2 {[%emt 0:01:15]} g6 {[%emt 0:02:33]} 5. Bf4 {[%emt 0:00:26]} Bf5 {[%emt 0:03:44]} 6. Qb3 {[%emt 0:02:42]} Qb6 {[%emt 0:00:09]} 7. e3 $1 {[%emt 0:02:01] The main line 7.e3 scores better than 7.c5.} Na6 {[%emt 0:10:56][%cal Bb8a6,Ba6b4,Bb4c2][%mdl 32] D11: Slav Defence: 3 Nf3 sidelines and 3...Nf6 4 e3 Bg4.} 8. Be2 {[%emt 0:15:27]} (8. Nc3 $14) 8... dxc4 {[%emt 0:32:20]} 9. Bxc4 {[%emt 0:00:43]} Qxb3 {[%emt 0:00:02] The position is equal.} 10. Bxb3 {[%emt 0:05:40]} Nb4 {[%emt 0:00:45]} 11. O-O {[%emt 0:00:56] [#]} Nc2 $146 {[%emt 0:16:57]} ({Predecessor:} 11... Bg7 12. Nc3 O-O 13. Ne5 Nbd5 14. Nxd5 cxd5 15. h3 Rfc8 16. g4 Bc2 17. Rfc1 Bxb3 18. axb3 a6 19. Bg5 e6 20. Bxf6 Bxf6 21. Nd7 Bd8 22. Kf1 Kg7 {½-½ (22) Spassov,L (2421)-Galunov,T (2364) Kula 2010}) 12. Bxc2 {[%emt 0:00:13]} Bxc2 {[%emt 0:00:01]} 13. Nbd2 {[%emt 0:02:12][%cal Bb1d2,Bd2c4,Bc4a5][%mdl 32]} Bg7 {[%emt 0:00:53]} 14. Rfc1 {[%emt 0:03:16]} Bf5 {[%emt 0:06:54]} 15. Nc4 {[%emt 0:04:06]} Nd5 {[%emt 0:09:31]} 16. Bg3 {[%emt 0:01:47]} Be4 {[%emt 0:05:13]} (16... a5 $11 {might be stronger.}) 17. Nfd2 $14 {[%emt 0:19:30][%cal Bf3d2,Bd2b3,Bb3c5,Bc5d3,Bd3c5][%mdl 32]} Bd3 {[%emt 0:00:15]} 18. Na5 $36 {[%emt 0:00:08][%mdl 2048] White is more active.} O-O-O {[%emt 0:00:22]} 19. Ndb3 {[%emt 0:02:43]} Bb5 {[%emt 0:03:40] Black is now going downhill.} ({Black should play} 19... Bf5 $14) 20. a4 $16 {[%emt 0:03:28]} Ba6 {[%emt 0:00:08] [#]} (20... Be2 $16 {was necessary.}) 21. Nc5 $1 $18 {[%emt 0:00:55]} Nb4 {[%emt 0:00:11]} 22. Ra3 {[%emt 0:03:48] And now Rb3 would win.} Rd5 {[%emt 0:00:07][%cal Od5c5] [#]} 23. Rb3 {[%emt 0:03:03]} (23. Nxc6 $1 $18 {[%mdl 512]} bxc6 24. Rb3 Bxd4 25. Rxb4 (25. exd4 Rxd4 26. Be5 Rhd8 $18) 25... Rxc5 26. Rxc5 Bxc5 27. Rb8+ Kd7 28. Rxh8) 23... Nd3 {[%emt 0:00:21]} (23... Rxc5 $16 {was worth a try.} 24. Rxc5 b6) 24. Nxd3 {[%emt 0:00:36]} Rxa5 {[%emt 0:00:16]} 25. Nc5 {[%emt 0:00:07]} e5 {[%emt 0:02:58]} (25... Rd8 $142) 26. Bxe5 {[%emt 0:01:21]} Bxe5 {[%emt 0:02:58]} 27. dxe5 {[%emt 0:00:12]} Rd8 {[%emt 0:00:27][%cal Oa5c5]} 28. Rbc3 {[%emt 0:00:05]} b6 {[%emt 0:00:38] [#]} 29. b4 {[%emt 0:02:46]} bxc5 {[%emt 0:00:29]} (29... Rxc5 30. bxc5) 30. bxa5 {[%emt 0:00:04][%mdl 4096] Endgame KRR-KRB} c4 {[%emt 0:00:08]} 31. f4 {[%emt 0:00:23]} Rd2 {[%emt 0:00:52]} 32. R1c2 {[%emt 0:00:33]} Rd1+ {[%emt 0:00:01]} 33. Kf2 {[%emt 0:00:05]} Kd7 {[%emt 0:00:34]} 34. Ke2 {[%emt 0:00:08]} Rg1 {[%emt 0:00:47]} 35. Rd2+ {[%emt 0:00:07]} Ke7 {[%emt 0:00:28]} 36. Kf2 {[%emt 0:00:25]} Ra1 {[%emt 0:00:39]} 37. Rd6 {[%emt 0:00:06]} Ra2+ {[%emt 0:00:28]} 38. Kg3 {[%emt 0:00:46]} Bb7 {[%emt 0:01:05]} (38... Rxa4 $142 39. Rxc6 Rxa5 40. Rc7+ Ke8 41. Rxa7 Ra4) 39. Rxc4 {[%emt 0:00:11]} Ra3 {[%emt 0:00:00]} 40. Rb4 {[%emt 0:00:47]} Bc8 {[%emt 0:00:14]} 41. Rxc6 {[%emt 0:00:33]} Bd7 {[%emt 0:00:45]} 42. Rc7 {[%emt 0:00:09] Strongly threatening Rd4.} Rxe3+ {[%emt 0:00:22]} 43. Kf2 {[%emt 0:00:06]} Rd3 {[%emt 0:00:21]} 44. Rxa7 {[%emt 0:00:06] a6 is the strong threat.} Ke6 {[%emt 0:00:09]} 45. Rb6+ {[%emt 0:00:08]} Kf5 {[%emt 0:00:37]} 46. Rd6 {[%emt 0:00:08]} Rxd6 {[%emt 0:00:04]} 47. exd6 {[%emt 0:00:10][%cal Be5d6,Bd6d7][%mdl 32]} Bxa4 {[%emt 0:00:05]} 48. d7 {[%emt 0:00:07] Weighted Error Value: White=0.13 (very precise) /Black=0.36} 1-0

[Event "31st MPL National U18 Chess-ch 2022"]
[Site "Pollachi"]
[Date "2022.04.18"]
[Round "2.3"]
[White "Piyush Kumar"]
[Black "Avinash Ramesh"]
[Result "1/2-1/2"]
[ECO "B73"]
[WhiteElo "1535"]
[BlackElo "2402"]
[Annotator "TA"]
[PlyCount "177"]
[EventDate "2022.04.18"]
[EventCountry "IND"]
[SourceTitle "playchess.com"]
[Source "ChessBase"]
[SourceQuality "1"]
[TimeControl "5400+30"]

{[%evp 23,177,8,28,23,18,13,14,27,28,12,6,2,2,8,70,70,59,51,60,62,100,62,60,37,50,32,60,41,62,41,50,39,48,48,50,47,60,48,89,0,0,0,33,35,36,38,43,0,0,0,0,0,0,0,0,0,0,0,0,0,0,0,30,0,37,0,0,0,0,0,7,0,7,7,7,0,8,0,9,9,25,0,0,0,0,0,0,0,0,0,0,0,0,0,0,0,0,0,0,0,0,0,0,0,0,0,0,0,0,0,0,0,0,0,0,0,0,0,0,0,0,0,0,0,0,0,0,0,0,0,0,0,0,0,0,0,0,0,0,0,0,0,0,0,0,0,0,0,0,0,0,0,0,0,0,0]} 1. e4 {[%emt 0:00:03] Rogers,I} c5 {[%emt 0:07:11]} 2. Nf3 {[%emt 0:00:29]} Nc6 {[%emt 0:00:06]} 3. d4 {[%emt 0:01:21]} cxd4 {[%emt 0:00:04]} 4. Nxd4 {[%emt 0:00:04]} Nf6 {[%emt 0:00:06]} 5. Nc3 {[%emt 0:00:11]} d6 {[%emt 0:00:06]} 6. Be2 {[%emt 0:00:54]} g6 {[%emt 0:00:33]} 7. Be3 {[%emt 0:01:47]} Bg7 {[%emt 0:00:06]} 8. O-O {[%emt 0:02:40]} O-O {[%emt 0:00:07]} 9. h3 {[%emt 0:05:46]} d5 {[%emt 0:00:46]} 10. exd5 {[%emt 0:01:33]} Nxd5 {[%emt 0:00:02]} 11. Nxd5 {[%emt 0:03:08]} Qxd5 {[%emt 0:00:03]} 12. Bf3 {[%emt 0:00:33]} Qa5 {[%emt 0:00:06]} 13. Nxc6 {[%emt 0:07:03] B73: Sicilian Dragon: Classical System without 9 Nb3.} bxc6 {[%emt 0:00:10]} 14. Qc1 {[%emt 0:01:50]} Rb8 {[%emt 0:01:01]} 15. c3 {[%emt 0:00:08]} c5 {[%emt 0:05:15]} 16. Re1 {[%emt 0:06:31] Threatening Bf4.} Be6 {[%emt 0:14:04] [#]} 17. Bf4 $146 {[%emt 0:07:35]} ({Predecessor:} 17. a3 c4 18. Bf4 Rbd8 19. Bg5 Rfe8 20. Rxe6 fxe6 21. Bc6 Rd5 22. Bxe8 Rxg5 23. Qf4 Qd5 24. Bf7+ {1-0 (24) Depasquale,C (2280)-Myo,N Penang 1991 EXT 1997 [Rogers,I]}) 17... Rbd8 {[%emt 1:09:14]} 18. Be5 {[%emt 0:08:04]} c4 {[%emt 0:00:00] [#]} (18... Qb6 $11) 19. b4 $1 $14 {[%emt 0:03:51]} Qb6 {[%emt 0:00:00]} 20. Bxg7 {[%emt 0:05:39]} Kxg7 {[%emt 0:00:00]} 21. Qf4 {[%emt 0:01:27]} Kg8 {[%emt 0:00:00]} 22. Be4 {[%emt 0:01:36]} (22. Qh6 {is interesting.} Rd3 23. Rac1 Qd6 24. a4) 22... Rd6 {[%emt 0:00:00]} 23. Re2 {[%emt 0:01:33]} Rfd8 {[%emt 0:00:00]} 24. Rae1 {[%emt 0:00:30]} Qb5 {[%emt 0:00:00]} 25. Bc2 {[%emt 0:01:13]} Qb6 {[%emt 0:00:00]} 26. h4 {[%emt 0:01:47][%cal Oh4h5]} Rd5 {[%emt 0:00:00]} 27. Be4 {[%emt 0:14:01]} Qd6 {[%emt 0:00:00]} 28. Qe3 {[%emt 0:02:40]} Rd2 {[%emt 0:00:00]} 29. Bc2 {[%emt 0:03:31] Rxd2 is the strong threat.} Rxe2 {[%emt 0:00:00]} 30. Rxe2 {[%emt 0:00:06]} a5 {[%emt 0:00:00]} 31. bxa5 {[%emt 0:02:23]} (31. b5 $16) 31... Qa3 $11 {[%emt 0:00:00]} 32. h5 {[%emt 0:00:39]} Qxa5 {[%emt 0:00:00]} 33. hxg6 {[%emt 0:00:24]} hxg6 {[%emt 0:00:00] [#]} 34. Bxg6 $1 {[%emt 0:01:13][%cal Oe3h6] aiming for Qh6!} Rd1+ {[%emt 0:00:00]} 35. Re1 {[%emt 0:00:10]} (35. Kh2 {keeps more tension.} Kg7 36. Qg3 fxg6 37. Rxe6 Qh5+ 38. Qh3) 35... Rxe1+ {[%emt 0:00:00]} 36. Qxe1 {[%emt 0:00:04]} Qxa2 {[%emt 0:00:00]} 37. Be4 {[%emt 0:01:15]} Qa7 {[%emt 0:00:00]} 38. Qd2 {[%emt 0:01:30]} Qa1+ {[%emt 0:00:00]} 39. Kh2 {[%emt 0:00:14]} Qa5 {[%emt 0:00:00] Prevents Qg5+. White must now prevent ...Qe5+.} 40. Qe3 {[%emt 0:01:06]} Qh5+ {[%emt 0:00:00]} 41. Kg1 {[%emt 0:00:05]} Qd1+ {[%emt 0:00:00]} 42. Kh2 {[%emt 0:00:06]} Qd6+ {[%emt 0:00:00]} 43. Kg1 {[%emt 0:00:55]} Kf8 {[%emt 0:00:00]} 44. Bc2 {[%emt 0:00:43]} Ke8 {[%emt 0:03:42]} 45. Ba4+ {[%emt 0:04:11]} Kd8 {[%emt 0:00:09]} 46. Qa7 {[%emt 0:01:05]} Bd5 {[%emt 0:02:13]} 47. Qe3 {[%emt 0:01:17]} (47. Qd4 {seems wilder.} Qe6 48. Kf1 Qe4 49. Qxe4 Bxe4 50. g4) 47... e5 {[%emt 0:02:20]} 48. Bc2 {[%emt 0:00:24]} Be6 {[%emt 0:01:27]} 49. f3 {[%emt 0:00:44]} Kc8 {[%emt 0:01:17]} 50. Kf2 {[%emt 0:02:58]} Kb8 {[%emt 0:01:43]} 51. Ke2 {[%emt 0:01:14]} f5 {[%emt 0:01:42]} 52. Kf1 {[%emt 0:02:10]} Kc7 {[%emt 0:01:18] The position is equal.} 53. Qa7+ {[%emt 0:00:33]} Kd8 {[%emt 0:00:05]} 54. Qe3 {[%emt 0:00:32]} f4 {[%emt 0:00:37]} 55. Qe2 {[%emt 0:00:29]} Qc5 {[%emt 0:00:16]} 56. Be4 {[%emt 0:00:12]} Ke7 {[%emt 0:00:19]} 57. Qd2 {[%emt 0:00:40]} Qa7 {[%emt 0:00:22]} 58. Bc2 {[%emt 0:01:28]} Qa2 {[%emt 0:00:37][%cal Oe6f5]} 59. Ke2 {[%emt 0:00:15]} Qa1 {[%emt 0:00:40]} 60. Kf2 {[%emt 0:00:14] Against Qg1+} Qb2 {[%emt 0:00:18][%cal Oe6f5] And now ...Bf5! would win.} 61. Ke2 {[%emt 0:00:22]} Qb6 {[%emt 0:00:14]} 62. Kf1 {[%emt 0:00:25] Against Qg1+} Kf6 {[%emt 0:01:24]} 63. Be4 {[%emt 0:00:12]} Ke7 {[%emt 0:00:46]} 64. Bc2 {[%emt 0:00:09]} Qb5 {[%emt 0:00:03]} 65. Kf2 {[%emt 0:00:30]} Qc5+ {[%emt 0:00:32]} 66. Kf1 {[%emt 0:00:06]} Bd5 {[%emt 0:00:14]} 67. Qe1 {[%emt 0:02:09]} Kd6 {[%emt 0:01:08]} 68. Qd2 {[%emt 0:00:19]} Kc7 {[%emt 0:00:32]} 69. Qe1 {[%emt 0:00:50]} Bc6 {[%emt 0:00:09]} 70. Be4 {[%emt 0:00:23]} Ba4 {[%emt 0:00:22]} 71. Qd2 {[%emt 0:00:19]} Bc6 {[%emt 0:00:50]} 72. Bxc6 {[%emt 0:00:09]} Qxc6 {[%emt 0:00:05][%mdl 4096] Endgame KQ-KQ} 73. Kf2 {[%emt 0:01:04]} Qb6+ {[%emt 0:00:14]} 74. Kf1 {[%emt 0:00:09]} Kc6 {[%emt 0:00:26]} 75. Qe1 {[%emt 0:00:22]} Qc5 {[%emt 0:01:16]} 76. Qe4+ {[%emt 0:00:57]} Qd5 {[%emt 0:00:46] ( -> ...Qxe4)} 77. Qg6+ {[%emt 0:01:55]} Kc5 {[%emt 0:00:03]} 78. Ke2 {[%emt 0:00:11] Prevents Qd2+.} Qb7 {[%emt 0:00:22]} 79. Qc2 {[%emt 0:00:17] Against Qb2} Qb3 {[%emt 0:00:41]} 80. Qd2 {[%emt 0:00:01]} Qb1 {[%emt 0:00:41] Strongly threatening ...Qg1.} 81. Kf2 {[%emt 0:00:13] Prevents Qg1+.} Qa1 {[%emt 0:00:23]} 82. Qc2 {[%emt 0:01:18]} Kb5 {[%emt 0:00:08]} 83. Qd2 {[%emt 0:01:06]} Kc6 {[%emt 0:00:09]} 84. Qc2 {[%emt 0:02:17]} Qa7+ {[%emt 0:00:05]} 85. Kf1 {[%emt 0:00:00]} Qe3 {[%emt 0:00:25]} 86. Qa4+ {[%emt 0:00:00]} Kd6 {[%emt 0:01:16]} 87. Qxc4 {[%emt 0:00:00]} Qc1+ {[%emt 0:00:04]} 88. Kf2 {[%emt 0:00:00]} Qe3+ {[%emt 0:00:05]} 89. Kf1 {[%emt 0:02:30] Weighted Error Value: White=0.09 (flawless) /Black=0.10 (very precise)} 1/2-1/2

[Event "31st MPL National U18 Chess-ch 2022"]
[Site "Pollachi"]
[Date "2022.04.18"]
[Round "2.4"]
[White "Ayush Sharma"]
[Black "Advait Ratnakar Vibhute"]
[Result "1-0"]
[ECO "B39"]
[WhiteElo "2302"]
[BlackElo "1532"]
[Annotator "TA"]
[PlyCount "145"]
[EventDate "2022.04.18"]
[EventCountry "IND"]
[SourceTitle "playchess.com"]
[Source "ChessBase"]
[SourceQuality "1"]
[TimeControl "5400+30"]

{[%evp 19,144,27,58,-33,-38,-35,59,61,57,-50,63,56,64,53,44,20,70,65,76,60,77,77,79,13,93,84,104,87,112,116,116,116,122,116,125,129,151,135,166,162,158,163,181,175,131,82,83,42,33,33,33,25,25,25,25,25,25,25,25,25,25,25,25,6,156,160,136,136,273,288,235,217,291,315,377,390,371,359,576,528,516,475,576,560,504,375,581,580,516,474,1022,979,1071,1100,1723,1665,3702,3130,2787,2354,2728,2138,29968,29969,29968,29965,29976,29975,29974,29976,29967,12795,6045,5781,2318,1772,29983,29984,29984,29985,29995,29996,29997,29998,29998,29999,29999]} 1. e4 {[%emt 0:00:02]} c5 {[%emt 0:00:08]} 2. Nf3 {[%emt 0:00:04]} g6 {[%emt 0:00:14]} 3. d4 {[%emt 0:00:02]} cxd4 {[%emt 0:00:18]} 4. Nxd4 {[%emt 0:00:03]} Bg7 {[%emt 0:00:55]} 5. c4 {[%emt 0:00:36]} Nc6 {[%emt 0:01:35]} 6. Be3 {[%emt 0:00:02]} Nf6 {[%emt 0:00:09]} 7. Nc3 {[%emt 0:00:04]} Ng4 {[%emt 0:00:16]} 8. Qxg4 {[%emt 0:00:04]} Nxd4 {[%emt 0:00:59]} 9. Qd1 {[%emt 0:00:02]} e5 {[%emt 0:01:18]} 10. Nb5 {[%emt 0:04:14]} O-O {[%emt 0:22:17]} 11. Nxd4 {[%emt 0:01:05] B39: Sicilian: Maroczy Bind with 5...Bg7 and 7...Ng4.} (11. Qd2 $14) 11... exd4 $15 {[%emt 0:00:11]} 12. Bxd4 {[%emt 0:00:02]} Qh4 {[%emt 0:11:16]} ({Don't do} 12... Re8 13. f3 $14) (12... Qa5+ $1 $15 13. Ke2 Re8) 13. Bxg7 {[%emt 0:01:10] White is slightly better.} Qxe4+ {[%emt 0:00:39]} 14. Be2 {[%emt 0:12:39]} (14. Qe2 $14 Qxe2+ 15. Bxe2 Kxg7 16. O-O-O) 14... Kxg7 {[%emt 0:00:28]} (14... Qxg2 $15 15. Bxf8 Qxh1+ 16. Kd2 Qxd1+ 17. Rxd1 Kxf8) 15. O-O $14 {[%emt 0:00:16]} d6 {[%emt 0:07:00] [#]} 16. Re1 $146 {[%emt 0:01:40]} ({Predecessor:} 16. b3 Qe5 17. Bf3 Rb8 18. Re1 Qf6 19. a4 b6 20. Qd2 Bb7 21. Bxb7 Rxb7 22. Rad1 {0-1 (39) Furo,J (2221)-Felegyhazi,L (2300) Hungary 1999}) 16... Qf4 {[%emt 0:02:00]} 17. Qd5 {[%emt 0:10:25]} Qe5 {[%emt 0:16:48]} ({Better is} 17... Be6 $1 $11 18. Qxb7 Rab8 19. Qxa7 Rxb2) 18. Qd2 {[%emt 0:00:43]} Qf6 {[%emt 0:02:35]} 19. Rad1 {[%emt 0:05:24]} Rd8 {[%emt 0:05:52][%cal Bf8d8,Bd8d7,Bd7c7,Bc7c5][%mdl 32]} 20. b3 {[%emt 0:02:11]} Be6 {[%emt 0:02:30]} 21. Qb4 {[%emt 0:02:13]} (21. Bf3 $16) 21... Qe7 {[%emt 0:05:16]} (21... d5 $11) 22. Bf3 $16 {[%emt 0:04:08]} Rab8 {[%emt 0:03:04]} 23. Rd2 {[%emt 0:03:31]} Rd7 {[%emt 0:01:54] [#]} 24. Bc6 $1 {[%emt 0:00:01][%mdl 512]} Rc7 {[%emt 0:02:31]} 25. Bd5 {[%emt 0:00:19] 0x0.0017ad110bf2dp-1022s more active pieces.} Rd8 {[%emt 0:03:03]} 26. Rde2 {[%emt 0:01:22][%cal Re2e6]} Re8 {[%emt 0:00:24]} 27. h3 {[%emt 0:04:11][%cal Bh2h3,Bh3h4][%mdl 32]} b6 {[%emt 0:01:36]} 28. a4 {[%emt 0:01:19]} Rc5 {[%emt 0:00:23]} 29. Qd2 {[%emt 0:02:05]} Rcc8 {[%emt 0:03:20]} 30. Re4 {[%emt 0:02:59]} Rcd8 {[%emt 0:04:36]} 31. h4 {[%emt 0:01:18][%cal Oh4h5]} Qf6 {[%emt 0:00:52]} 32. Rf4 {[%emt 0:00:56]} (32. Bc6 $142) 32... Bf5 {[%emt 0:00:29]} 33. g4 {[%emt 0:11:17]} Rxe1+ {[%emt 0:00:31]} 34. Qxe1 {[%emt 0:00:11]} Qe5 {[%emt 0:00:20]} 35. Qc1 {[%emt 0:01:37] aiming for Rxf5.} Be6 {[%emt 0:00:38]} 36. Re4 $36 {[%emt 0:01:39][%mdl 2048] White is more active.} Qf6 {[%emt 0:00:18]} 37. g5 {[%emt 0:00:54]} Qf5 {[%emt 0:00:50]} 38. Qc3+ {[%emt 0:00:50]} Kg8 {[%emt 0:00:25]} 39. Qf6 {[%emt 0:00:02]} Qxf6 {[%emt 0:00:57]} 40. gxf6 $11 {[%emt 0:00:02][%mdl 4096] Endgame KRB-KRB} Re8 {[%emt 0:00:01]} 41. Rd4 {[%emt 0:06:37]} h6 {[%emt 0:00:49]} (41... Bxd5 $1 $11 42. cxd5 (42. Rxd5 Re6 $11) 42... Rc8) 42. Bc6 $16 {[%emt 0:00:19][%csl LRd6,LRe8]} Rd8 {[%emt 0:00:20]} 43. b4 {[%emt 0:02:57][%cal Oc4c5,Bb3b4,Bb4b5][%mdl 32]} g5 {[%emt 0:01:11] [#] Black cannot hold the game after this.} (43... Rc8 $16 {might work better.} 44. b5 a5) 44. h5 $1 $18 {[%emt 0:01:15]} Kf8 {[%emt 0:00:31]} 45. Bb5 {[%emt 0:01:23]} d5 {[%emt 0:00:31]} 46. Bc6 {[%emt 0:00:01][%cal Rc4d5]} Rd6 {[%emt 0:00:30]} 47. cxd5 {[%emt 0:03:23]} Bf5 {[%emt 0:00:32]} 48. b5 {[%emt 0:00:17] Hoping for f3.} Bc2 $2 {[%emt 0:00:34]} (48... Bh3 49. Kh2 Bf5) 49. f3 {[%emt 0:00:52]} Bf5 {[%emt 0:00:29]} 50. Kf2 {[%emt 0:00:30]} Bc2 {[%emt 0:00:27]} 51. Ke3 {[%emt 0:00:47]} Bf5 {[%emt 0:00:20]} 52. Kd2 {[%emt 0:01:30]} Bb1 {[%emt 0:00:32]} (52... Bh3 {was necessary.} 53. Ke3 Bf5) 53. Kc3 {[%emt 0:00:02]} Bf5 {[%emt 0:00:23]} 54. Rd1 {[%emt 0:01:17]} g4 {[%emt 0:00:49]} (54... Bh3 $142 55. Rd4 Bf5) 55. fxg4 {[%emt 0:00:01]} Bxg4 {[%emt 0:00:15]} 56. Rf1 {[%emt 0:00:01]} Bxh5 {[%emt 0:00:40]} 57. Kd4 {[%emt 0:00:01] Strongly threatening Ke5.} Bg4 {[%emt 0:00:31]} 58. Ke5 {[%emt 0:00:13]} Rd8 {[%emt 0:00:09]} 59. d6 {[%emt 0:00:04]} h5 {[%emt 0:00:24]} 60. Rg1 {[%emt 0:00:34][%cal Og1g4] Rxg4! would kill now.} Be6 {[%emt 0:00:56]} 61. Rg7 {[%emt 0:00:02]} Bg4 {[%emt 0:00:31]} 62. Rg5 {[%emt 0:00:07]} Rc8 {[%emt 0:00:35]} 63. d7 {[%emt 0:00:13]} Bxd7 {[%emt 0:00:23]} 64. Bxd7 {[%emt 0:00:05] KRB-KR} Rc5+ {[%emt 0:00:08]} 65. Kf4 {[%emt 0:00:05] Intending Rxc5 and mate.} Rc4+ {[%emt 0:00:04]} 66. Kg3 {[%emt 0:00:29]} h4+ {[%emt 0:00:14]} 67. Kh3 {[%emt 0:00:01] Threatening mate with Re5.} Rxa4 {[%emt 0:00:16]} 68. Rg4 {[%emt 0:00:37] White mates.} Ra3+ {[%emt 0:00:56]} 69. Kxh4 {[%emt 0:00:03]} a6 {[%emt 0:00:40]} 70. Re4 {[%emt 0:00:09][%csl Gd7][%cal Re4e8]} Kg8 {[%emt 0:00:24]} 71. Re8+ {[%emt 0:00:01]} Kh7 {[%emt 0:00:09]} 72. Bf5+ {[%emt 0:00:02]} Kh6 {[%emt 0:00:08]} 73. Rh8# {[%emt 0:00:02] Weighted Error Value: White=0.19 (very precise) /Black=0.55} 1-0